[Event "*** Titled Tuesday Blitz"]
[Site "Chess.com"]
[Date "2021.02.02"]
[Round "6"]
[White "Alexsur1981"]
[Black "AlexTriapishko"]
[Result "1-0"]
[WhiteElo "2859"]
[BlackElo "2912"]
[TimeControl "180+1"]
[EndTime "11:09:29 PST"]
[Termination "Alexsur1981 won on time"]

1. e4 {[%clk 0:03:00.9]} 1... e5 {[%clk 0:02:58.9]} 2. f4 {[%clk 0:03:00.5]}
2... d5 {[%clk 0:02:57.4]} 3. exd5 {[%clk 0:03:00.4]} 3... exf4 {[%clk
0:02:56.6]} 4. Nf3 {[%clk 0:03:00.2]} 4... Nf6 {[%clk 0:02:56.9]} 5. Bc4 {[%clk
0:03:00.4]} 5... Nxd5 {[%clk 0:02:56]} 6. O-O {[%clk 0:03:00.9]} 6... Be7 {[%clk
0:02:56.4]} 7. d4 {[%clk 0:03:00.6]} 7... Be6 {[%clk 0:02:41.9]} 8. Bxd5 {[%clk
0:02:58]} 8... Bxd5 {[%clk 0:02:40.6]} 9. Bxf4 {[%clk 0:02:57.9]} 9... O-O
{[%clk 0:02:37.7]} 10. Nc3 {[%clk 0:02:57.6]} 10... c6 {[%clk 0:02:29.6]} 11.
Nxd5 {[%clk 0:02:56.1]} 11... Qxd5 {[%clk 0:02:30.5]} 12. c3 {[%clk 0:02:52]}
12... Nd7 {[%clk 0:02:29.8]} 13. Qb3 {[%clk 0:02:50.4]} 13... Nb6 {[%clk
0:02:15.1]} 14. Ne5 {[%clk 0:02:33.5]} 14... f6 {[%clk 0:02:00.4]} 15. Qxd5+
{[%clk 0:02:22]} 15... Nxd5 {[%clk 0:01:45.7]} 16. Nd3 {[%clk 0:02:22.9]} 16...
b5 {[%clk 0:01:38]} 17. Bd2 {[%clk 0:02:13.8]} 17... Rfe8 {[%clk 0:01:25.6]} 18.
Kf2 {[%clk 0:02:09.6]} 18... Bd6 {[%clk 0:01:16.9]} 19. Rfe1 {[%clk 0:02:02.9]}
19... Kf7 {[%clk 0:01:15.4]} 20. g3 {[%clk 0:01:58.2]} 20... Nb6 {[%clk
0:01:11.7]} 21. b3 {[%clk 0:01:52.6]} 21... a5 {[%clk 0:00:58]} 22. Rxe8 {[%clk
0:01:43.9]} 22... Kxe8 {[%clk 0:00:54.5]} 23. Ke2 {[%clk 0:01:31.1]} 23... a4
{[%clk 0:00:52.9]} 24. Re1 {[%clk 0:01:30]} 24... Kd7 {[%clk 0:00:51.8]} 25. Kd1
{[%clk 0:01:27.2]} 25... axb3 {[%clk 0:00:50.1]} 26. axb3 {[%clk 0:01:28.1]}
26... Ra2 {[%clk 0:00:48.7]} 27. Re2 {[%clk 0:01:23.4]} 27... Bf8 {[%clk
0:00:22.7]} 28. g4 {[%clk 0:01:19.1]} 28... Nd5 {[%clk 0:00:21.6]} 29. c4 {[%clk
0:01:08.1]} 29... bxc4 {[%clk 0:00:13.3]} 30. bxc4 {[%clk 0:01:09]} 30... Nb6
{[%clk 0:00:13.7]} 31. c5 {[%clk 0:01:08]} 31... Nd5 {[%clk 0:00:13.6]} 32. g5
{[%clk 0:01:08.3]} 32... Ra4 {[%clk 0:00:10.8]} 33. gxf6 {[%clk 0:01:07.9]}
33... gxf6 {[%clk 0:00:11]} 34. Re4 {[%clk 0:01:08]} 34... Be7 {[%clk
0:00:06.1]} 35. Rh4 {[%clk 0:01:05.5]} 35... Ke6 {[%clk 0:00:05.8]} 36. Ke2
{[%clk 0:00:54.8]} 36... Ra2 {[%clk 0:00:03.5]} 37. Rxh7 {[%clk 0:00:46.7]}
37... Nc3+ {[%clk 0:00:03.7]} 38. Ke1 {[%clk 0:00:46]} 38... Ra1+ {[%clk
0:00:04.2]} 39. Kf2 {[%clk 0:00:46]} 39... Nd5 {[%clk 0:00:03.1]} 40. Nf4+
{[%clk 0:00:43.9]} 40... Nxf4 {[%clk 0:00:02.8]} 41. Bxf4 {[%clk 0:00:44.8]}
41... Ra2+ {[%clk 0:00:02.3]} 42. Kf3 {[%clk 0:00:44.1]} 42... Ra3+ {[%clk
0:00:02.4]} 43. Be3 {[%clk 0:00:43.7]} 43... Ra2 {[%clk 0:00:01.8]} 44. h4
{[%clk 0:00:43]} 44... f5 {[%clk 0:00:01.1]} 45. Rh6+ {[%clk 0:00:42]} 45... Kd5
{[%clk 0:00:01.5]} 46. Bg5 {[%clk 0:00:37.9]} 46... Ra3+ {[%clk 0:00:01.7]} 47.
Kf4 {[%clk 0:00:37.7]} 47... Bf8 {[%clk 0:00:01.7]} 48. Rf6 {[%clk 0:00:35.4]}
48... Bg7 {[%clk 0:00:02.1]} 49. Rd6+ {[%clk 0:00:35]} 49... Kc4 {[%clk
0:00:02.6]} 50. Rxc6 {[%clk 0:00:34.4]} 50... Bxd4 {[%clk 0:00:03]} 51. Kxf5
{[%clk 0:00:34.6]} 51... Kd5 {[%clk 0:00:02.6]} 52. Rc8 {[%clk 0:00:34.5]} 52...
Rf3+ {[%clk 0:00:01.9]} 53. Kg4 {[%clk 0:00:31.8]} 53... Rf1 {[%clk 0:00:02.3]}
54. c6 {[%clk 0:00:31.3]} 54... Bb6 {[%clk 0:00:02.1]} 55. h5 {[%clk 0:00:30]}
55... Kd6 {[%clk 0:00:01.6]} 56. h6 {[%clk 0:00:28.3]} 56... Rh1 {[%clk
0:00:02.1]} 57. Kf5 {[%clk 0:00:27.8]} 57... Bc7 {[%clk 0:00:01.9]} 58. Bf4+
{[%clk 0:00:26.7]} 1-0

[Event "*** Titled Tuesday Blitz"]
[Site "Chess.com"]
[Date "2021.02.02"]
[Round "6"]
[White "Camels1981"]
[Black "Manukyan_Artak"]
[Result "1/2-1/2"]
[WhiteElo "2293"]
[BlackElo "2416"]
[TimeControl "180+1"]
[EndTime "11:09:29 PST"]
[Termination "Game drawn - insufficient material"]

1. e4 {[%clk 0:03:00.9]} 1... c6 {[%clk 0:02:59.8]} 2. d4 {[%clk 0:03:00.4]}
2... d5 {[%clk 0:03:00.7]} 3. exd5 {[%clk 0:03:00.9]} 3... cxd5 {[%clk
0:03:00.5]} 4. c4 {[%clk 0:03:01.4]} 4... Nf6 {[%clk 0:02:59.8]} 5. Nc3 {[%clk
0:03:01.9]} 5... g6 {[%clk 0:03:00]} 6. cxd5 {[%clk 0:03:00.9]} 6... Bg7 {[%clk
0:03:00.1]} 7. Qb3 {[%clk 0:03:01.5]} 7... O-O {[%clk 0:02:59.2]} 8. Be2 {[%clk
0:03:02]} 8... Nbd7 {[%clk 0:02:58]} 9. Bf3 {[%clk 0:03:01.9]} 9... Nb6 {[%clk
0:02:58.1]} 10. Nge2 {[%clk 0:03:02.3]} 10... Bf5 {[%clk 0:02:56.9]} 11. a4
{[%clk 0:03:01]} 11... Bd3 {[%clk 0:02:56.2]} 12. a5 {[%clk 0:02:59.7]} 12...
Bc4 {[%clk 0:02:55]} 13. Qb4 {[%clk 0:02:57]} 13... Bxe2 {[%clk 0:02:55]} 14.
Nxe2 {[%clk 0:02:49.6]} 14... Nbxd5 {[%clk 0:02:54.7]} 15. Qxb7 {[%clk
0:02:49.6]} 15... Rb8 {[%clk 0:02:51]} 16. Qa6 {[%clk 0:02:49.4]} 16... Nb4
{[%clk 0:02:46.8]} 17. Qc4 {[%clk 0:02:48]} 17... e6 {[%clk 0:02:33.5]} 18. O-O
{[%clk 0:02:46.8]} 18... Nfd5 {[%clk 0:02:33.3]} 19. Bd2 {[%clk 0:02:37.4]}
19... Rc8 {[%clk 0:02:12.8]} 20. Qb3 {[%clk 0:02:36.4]} 20... Rb8 {[%clk
0:02:12.5]} 21. Rfc1 {[%clk 0:02:32.2]} 21... Qh4 {[%clk 0:01:55.1]} 22. g3
{[%clk 0:02:24.5]} 22... Qf6 {[%clk 0:01:50.8]} 23. Bg2 {[%clk 0:02:23.6]} 23...
Nc6 {[%clk 0:01:42.4]} 24. Qd3 {[%clk 0:00:44.9]} 24... Nxd4 {[%clk 0:01:38.9]}
25. Nxd4 {[%clk 0:00:39.3]} 25... Qxd4 {[%clk 0:01:39.8]} 26. Qxd4 {[%clk
0:00:38.9]} 26... Bxd4 {[%clk 0:01:40.7]} 27. Bxd5 {[%clk 0:00:34.8]} 27... exd5
{[%clk 0:01:41.6]} 28. Bc3 {[%clk 0:00:35.3]} 28... Bxc3 {[%clk 0:01:30.4]} 29.
bxc3 {[%clk 0:00:35.3]} 29... Rfc8 {[%clk 0:01:30]} 30. Rd1 {[%clk 0:00:35.8]}
30... Rc5 {[%clk 0:01:29.1]} 31. a6 {[%clk 0:00:34.1]} 31... Kf8 {[%clk
0:01:24.2]} 32. Rab1 {[%clk 0:00:33.4]} 32... Rxb1 {[%clk 0:01:22.9]} 33. Rxb1
{[%clk 0:00:33.1]} 33... Rc6 {[%clk 0:01:17]} 34. Rb8+ {[%clk 0:00:31.3]} 34...
Kg7 {[%clk 0:01:16.6]} 35. Rd8 {[%clk 0:00:31.8]} 35... Rxa6 {[%clk 0:01:16.2]}
36. Rxd5 {[%clk 0:00:32.1]} 36... Ra1+ {[%clk 0:01:15]} 37. Kg2 {[%clk
0:00:31.8]} 37... a5 {[%clk 0:01:15.9]} 38. c4 {[%clk 0:00:30.6]} 38... a4
{[%clk 0:01:12.9]} 39. Ra5 {[%clk 0:00:30.5]} 39... Kf6 {[%clk 0:01:12.5]} 40.
c5 {[%clk 0:00:26.3]} 40... Ke6 {[%clk 0:01:05.6]} 41. Ra7 {[%clk 0:00:26.7]}
41... a3 {[%clk 0:00:55.8]} 42. c6 {[%clk 0:00:26.2]} 42... a2 {[%clk
0:00:54.5]} 43. c7 {[%clk 0:00:26.4]} 43... Kd7 {[%clk 0:00:54.4]} 44. h4 {[%clk
0:00:23.2]} 44... h5 {[%clk 0:00:53.8]} 45. Kf3 {[%clk 0:00:23]} 45... f6 {[%clk
0:00:52.7]} 46. Kf4 {[%clk 0:00:23]} 46... Kc8 {[%clk 0:00:50.6]} 47. Kf3 {[%clk
0:00:20.7]} 47... g5 {[%clk 0:00:47.4]} 48. Kg2 {[%clk 0:00:19.8]} 48... gxh4
{[%clk 0:00:45.2]} 49. gxh4 {[%clk 0:00:20]} 49... Kd7 {[%clk 0:00:34.8]} 50.
Kf3 {[%clk 0:00:20.2]} 50... Kc8 {[%clk 0:00:33.7]} 51. Kf4 {[%clk 0:00:20.5]}
51... Rh1 {[%clk 0:00:33.4]} 52. Rxa2 {[%clk 0:00:19.5]} 52... Rxh4+ {[%clk
0:00:33.3]} 53. Kf5 {[%clk 0:00:19.9]} 53... Kxc7 {[%clk 0:00:32.3]} 54. Kxf6
{[%clk 0:00:20.1]} 54... Rh1 {[%clk 0:00:30.2]} 55. Kg5 {[%clk 0:00:19.7]} 55...
Kd6 {[%clk 0:00:28]} 56. Re2 {[%clk 0:00:18.7]} 56... h4 {[%clk 0:00:27.9]} 57.
Kg4 {[%clk 0:00:18.8]} 57... h3 {[%clk 0:00:26.2]} 58. Kg3 {[%clk 0:00:19]}
58... Kd5 {[%clk 0:00:24.9]} 59. f4 {[%clk 0:00:18.6]} 59... Rf1 {[%clk
0:00:23.5]} 60. Kxh3 {[%clk 0:00:18.4]} 60... Rxf4 {[%clk 0:00:23.1]} 61. Kg3
{[%clk 0:00:18.9]} 61... Re4 {[%clk 0:00:23.3]} 62. Rxe4 {[%clk 0:00:18.6]}
62... Kxe4 {[%clk 0:00:24.2]} 1/2-1/2

[Event "*** Titled Tuesday Blitz"]
[Site "Chess.com"]
[Date "2021.02.02"]
[Round "6"]
[White "Reader777"]
[Black "FontVella8"]
[Result "1-0"]
[WhiteElo "2798"]
[BlackElo "2588"]
[TimeControl "180+1"]
[EndTime "11:09:30 PST"]
[Termination "Reader777 won by checkmate"]

1. d4 {[%clk 0:03:00.9]} 1... d5 {[%clk 0:02:59.2]} 2. c4 {[%clk 0:03:01.2]}
2... c6 {[%clk 0:03:00]} 3. Nf3 {[%clk 0:03:01.1]} 3... Nf6 {[%clk 0:03:00.6]}
4. g3 {[%clk 0:03:00.7]} 4... dxc4 {[%clk 0:03:00.2]} 5. Bg2 {[%clk 0:03:01.1]}
5... b5 {[%clk 0:02:58.8]} 6. a4 {[%clk 0:03:00.3]} 6... Bb7 {[%clk 0:02:57.9]}
7. O-O {[%clk 0:03:00.3]} 7... e6 {[%clk 0:02:56]} 8. b3 {[%clk 0:02:59.1]} 8...
cxb3 {[%clk 0:02:46.3]} 9. Qxb3 {[%clk 0:02:59.5]} 9... b4 {[%clk 0:02:39.4]}
10. Ne5 {[%clk 0:02:36]} 10... Be7 {[%clk 0:02:31.5]} 11. Bb2 {[%clk 0:02:35.8]}
11... O-O {[%clk 0:02:31.2]} 12. Nd2 {[%clk 0:02:36]} 12... a5 {[%clk
0:02:12.9]} 13. Rfc1 {[%clk 0:02:32.4]} 13... Qb6 {[%clk 0:02:02.5]} 14. Ndc4
{[%clk 0:02:30.6]} 14... Qa6 {[%clk 0:02:02.9]} 15. e4 {[%clk 0:02:20.8]} 15...
c5 {[%clk 0:01:55.9]} 16. dxc5 {[%clk 0:02:10.9]} 16... Bxc5 {[%clk 0:01:37]}
17. Nd3 {[%clk 0:02:09]} 17... Nbd7 {[%clk 0:01:32.1]} 18. Bxf6 {[%clk
0:02:00.9]} 18... gxf6 {[%clk 0:01:31.2]} 19. Nxc5 {[%clk 0:02:01]} 19... Nxc5
{[%clk 0:01:31.3]} 20. Qe3 {[%clk 0:02:01.2]} 20... Rac8 {[%clk 0:01:25.4]} 21.
Ne5 {[%clk 0:01:21.7]} 21... fxe5 {[%clk 0:00:37.9]} 22. Rxc5 {[%clk 0:00:55.5]}
22... f6 {[%clk 0:00:36.5]} 23. Rac1 {[%clk 0:00:46.9]} 23... Qd6 {[%clk
0:00:27.9]} 24. Rxa5 {[%clk 0:00:43.4]} 24... Rxc1+ {[%clk 0:00:28]} 25. Qxc1
{[%clk 0:00:44]} 25... Rc8 {[%clk 0:00:28.6]} 26. Qb1 {[%clk 0:00:43.1]} 26...
Qd2 {[%clk 0:00:26]} 27. Qb3 {[%clk 0:00:32.1]} 27... Rc1+ {[%clk 0:00:12]} 28.
Bf1 {[%clk 0:00:32.1]} 28... Qd6 {[%clk 0:00:07.1]} 29. Qe3 {[%clk 0:00:17]}
29... Ba6 {[%clk 0:00:04.5]} 30. Qxc1 {[%clk 0:00:16.4]} 30... Bxf1 {[%clk
0:00:04.1]} 31. Qxf1 {[%clk 0:00:16.5]} 31... b3 {[%clk 0:00:04.2]} 32. Rb5
{[%clk 0:00:15.9]} 32... Qa3 {[%clk 0:00:04.4]} 33. Qb1 {[%clk 0:00:13.6]} 33...
Qxa4 {[%clk 0:00:04.7]} 34. Qxb3 {[%clk 0:00:13.6]} 34... Qxe4 {[%clk 0:00:05]}
35. Qxe6+ {[%clk 0:00:13.5]} 35... Kg7 {[%clk 0:00:05.6]} 36. Qe7+ {[%clk
0:00:12.7]} 36... Kg6 {[%clk 0:00:05.1]} 37. Qb4 {[%clk 0:00:10.2]} 37... Qe2
{[%clk 0:00:02.8]} 38. Rc5 {[%clk 0:00:08.5]} 38... Qd1+ {[%clk 0:00:02.5]} 39.
Kg2 {[%clk 0:00:08.4]} 39... h5 {[%clk 0:00:03.4]} 40. Qe4+ {[%clk 0:00:07.1]}
40... Kh6 {[%clk 0:00:03.5]} 41. h4 {[%clk 0:00:05.1]} 41... Qd8 {[%clk
0:00:03.2]} 42. Rc6 {[%clk 0:00:05.3]} 42... Kg7 {[%clk 0:00:03]} 43. Qf3 {[%clk
0:00:05.9]} 43... Qe7 {[%clk 0:00:02.8]} 44. Qxh5 {[%clk 0:00:05.8]} 44... Qb7
{[%clk 0:00:03.1]} 45. Qg4+ {[%clk 0:00:06.2]} 45... Kf7 {[%clk 0:00:03]} 46.
Qe6+ {[%clk 0:00:06.9]} 46... Kg7 {[%clk 0:00:02.3]} 47. Qxf6+ {[%clk
0:00:07.6]} 47... Kg8 {[%clk 0:00:03.2]} 48. Qe6+ {[%clk 0:00:06.8]} 48... Kh8
{[%clk 0:00:03.4]} 49. h5 {[%clk 0:00:07.6]} 49... e4 {[%clk 0:00:03.1]} 50.
Rc8+ {[%clk 0:00:06.8]} 50... Kg7 {[%clk 0:00:02.9]} 51. Qg6# {[%clk 0:00:06.1]}
1-0

[Event "*** Titled Tuesday Blitz"]
[Site "Chess.com"]
[Date "2021.02.02"]
[Round "6"]
[White "L1m96"]
[Black "Naaas1"]
[Result "0-1"]
[WhiteElo "2553"]
[BlackElo "2767"]
[TimeControl "180+1"]
[EndTime "11:09:30 PST"]
[Termination "Naaas1 won on time"]

1. d4 {[%clk 0:03:00.9]} 1... Nf6 {[%clk 0:02:59.4]} 2. c4 {[%clk 0:03:00.8]}
2... g6 {[%clk 0:02:59.2]} 3. Nf3 {[%clk 0:03:01]} 3... Bg7 {[%clk 0:02:59.3]}
4. Nc3 {[%clk 0:03:01.6]} 4... O-O {[%clk 0:02:59.8]} 5. Bf4 {[%clk 0:03:01.5]}
5... d6 {[%clk 0:02:55]} 6. e3 {[%clk 0:03:01.4]} 6... Nbd7 {[%clk 0:02:44.5]}
7. h3 {[%clk 0:02:58.3]} 7... Re8 {[%clk 0:02:43.2]} 8. Be2 {[%clk 0:02:58.8]}
8... b6 {[%clk 0:02:35.5]} 9. O-O {[%clk 0:02:53.7]} 9... Bb7 {[%clk 0:02:35.2]}
10. Qc2 {[%clk 0:02:36.2]} 10... e5 {[%clk 0:02:23.4]} 11. dxe5 {[%clk 0:02:36]}
11... Nxe5 {[%clk 0:02:23]} 12. Nxe5 {[%clk 0:02:25.8]} 12... dxe5 {[%clk
0:02:23.9]} 13. Rad1 {[%clk 0:02:22.5]} 13... Qe7 {[%clk 0:01:54.8]} 14. Bg5
{[%clk 0:02:21.9]} 14... c6 {[%clk 0:01:34.3]} 15. Ne4 {[%clk 0:02:13.3]} 15...
Red8 {[%clk 0:01:26.1]} 16. Rxd8+ {[%clk 0:02:11.5]} 16... Rxd8 {[%clk
0:01:25.2]} 17. Rd1 {[%clk 0:02:11.8]} 17... c5 {[%clk 0:01:13.3]} 18. Nc3
{[%clk 0:01:56.1]} 18... Rxd1+ {[%clk 0:01:09.7]} 19. Qxd1 {[%clk 0:01:57]}
19... Qd7 {[%clk 0:01:08.1]} 20. Bxf6 {[%clk 0:01:17.2]} 20... Qxd1+ {[%clk
0:01:06.9]} 21. Bxd1 {[%clk 0:01:18.1]} 21... Bxf6 {[%clk 0:01:07.4]} 22. Nd5
{[%clk 0:01:18.5]} 22... Bd8 {[%clk 0:01:04.6]} 23. e4 {[%clk 0:01:15.7]} 23...
Bg5 {[%clk 0:01:00.3]} 24. Kf1 {[%clk 0:01:12.8]} 24... h5 {[%clk 0:00:58]} 25.
Ke2 {[%clk 0:01:12.6]} 25... Kf8 {[%clk 0:00:57.6]} 26. Ba4 {[%clk 0:01:11.2]}
26... Bc8 {[%clk 0:00:56.1]} 27. Bc6 {[%clk 0:01:07.1]} 27... Bc1 {[%clk
0:00:53.3]} 28. b3 {[%clk 0:01:07]} 28... Bb2 {[%clk 0:00:53]} 29. Ne3 {[%clk
0:01:05.3]} 29... f5 {[%clk 0:00:46.5]} 30. exf5 {[%clk 0:00:52.4]} 30... gxf5
{[%clk 0:00:46.5]} 31. h4 {[%clk 0:00:52.9]} 31... Kg7 {[%clk 0:00:34]} 32. Be8
{[%clk 0:00:48.6]} 32... Kh6 {[%clk 0:00:33.1]} 33. g3 {[%clk 0:00:46.8]} 33...
Bd4 {[%clk 0:00:32.4]} 34. Nd5 {[%clk 0:00:45.6]} 34... Be6 {[%clk 0:00:29.1]}
35. Nf6 {[%clk 0:00:44.1]} 35... f4 {[%clk 0:00:20.5]} 36. Kf3 {[%clk
0:00:40.5]} 36... Bf5 {[%clk 0:00:18.6]} 37. gxf4 {[%clk 0:00:36.4]} 37... Bb1
{[%clk 0:00:18]} 38. Ne4 {[%clk 0:00:18.1]} 38... exf4 {[%clk 0:00:16]} 39. Kxf4
{[%clk 0:00:14.9]} 39... Bxa2 {[%clk 0:00:16.1]} 40. Ba4 {[%clk 0:00:14.7]}
40... Bb1 {[%clk 0:00:16.1]} 41. Nd6 {[%clk 0:00:13.6]} 41... Bxf2 {[%clk
0:00:14.1]} 42. Bc6 {[%clk 0:00:11.9]} 42... Bxh4 {[%clk 0:00:13.5]} 43. Nf5+
{[%clk 0:00:11.4]} 43... Bxf5 {[%clk 0:00:11.2]} 44. Kxf5 {[%clk 0:00:12.3]}
44... Be1 {[%clk 0:00:10.7]} 45. Bf3 {[%clk 0:00:09]} 45... h4 {[%clk
0:00:10.9]} 46. Bg4 {[%clk 0:00:06.5]} 46... Kg7 {[%clk 0:00:10.7]} 47. Bf3
{[%clk 0:00:04.6]} 47... Kf7 {[%clk 0:00:10.9]} 48. Bd5+ {[%clk 0:00:02.8]}
48... Ke7 {[%clk 0:00:10.8]} 49. Kg4 {[%clk 0:00:03.5]} 49... Kd6 {[%clk
0:00:10.6]} 50. Bf3 {[%clk 0:00:03.5]} 50... Ke5 {[%clk 0:00:11.1]} 51. Bc6
{[%clk 0:00:03.7]} 51... Kd4 {[%clk 0:00:11.4]} 52. Ba4 {[%clk 0:00:03.9]} 52...
Kc3 {[%clk 0:00:12]} 53. Kh3 {[%clk 0:00:04.3]} 53... Kb4 {[%clk 0:00:12.6]} 54.
Kg4 {[%clk 0:00:04.7]} 54... a6 {[%clk 0:00:13.2]} 0-1

[Event "*** Titled Tuesday Blitz"]
[Site "Chess.com"]
[Date "2021.02.02"]
[Round "6"]
[White "PriSachu"]
[Black "picturesquecheck"]
[Result "1-0"]
[WhiteElo "2483"]
[BlackElo "2219"]
[TimeControl "180+1"]
[EndTime "11:09:32 PST"]
[Termination "PriSachu won by resignation"]

1. e4 {[%clk 0:02:59.8]} 1... c5 {[%clk 0:02:59.1]} 2. Nf3 {[%clk 0:02:59.5]}
2... Nc6 {[%clk 0:02:57.2]} 3. d4 {[%clk 0:02:58.8]} 3... cxd4 {[%clk
0:02:58.1]} 4. Nxd4 {[%clk 0:02:58.7]} 4... Nf6 {[%clk 0:02:58.3]} 5. Nc3 {[%clk
0:02:58.3]} 5... d6 {[%clk 0:02:56.7]} 6. Bg5 {[%clk 0:02:57.8]} 6... e6 {[%clk
0:02:56.1]} 7. Qd2 {[%clk 0:02:57.7]} 7... a6 {[%clk 0:02:54.6]} 8. O-O-O {[%clk
0:02:53]} 8... h6 {[%clk 0:02:54.7]} 9. Nxc6 {[%clk 0:02:52.1]} 9... bxc6 {[%clk
0:02:53.5]} 10. Bf4 {[%clk 0:02:52.5]} 10... d5 {[%clk 0:02:53.1]} 11. Qe3
{[%clk 0:02:52.3]} 11... Bb4 {[%clk 0:02:51.5]} 12. Be2 {[%clk 0:02:42.5]} 12...
O-O {[%clk 0:02:47.8]} 13. Be5 {[%clk 0:02:25.1]} 13... Bxc3 {[%clk 0:02:41.9]}
14. Qxc3 {[%clk 0:02:19]} 14... Nxe4 {[%clk 0:02:39.2]} 15. Qe3 {[%clk 0:02:01]}
15... Qa5 {[%clk 0:02:10.2]} 16. Bd3 {[%clk 0:01:45]} 16... Qxa2 {[%clk
0:01:52.6]} 17. Bxe4 {[%clk 0:01:43.8]} 17... dxe4 {[%clk 0:01:50.5]} 18. b3
{[%clk 0:01:24.2]} 18... Qa3+ {[%clk 0:01:40.3]} 19. Bb2 {[%clk 0:01:22.9]}
19... Qe7 {[%clk 0:01:35.1]} 20. Qxe4 {[%clk 0:01:20.6]} 20... Bb7 {[%clk
0:01:30.5]} 21. Qd4 {[%clk 0:01:12.2]} 21... f6 {[%clk 0:01:28]} 22. Qd7 {[%clk
0:01:11.7]} 22... Rf7 {[%clk 0:01:25.5]} 23. Qxe7 {[%clk 0:00:55.8]} 23... Rxe7
{[%clk 0:01:26.4]} 24. Ba3 {[%clk 0:00:56.2]} 24... Rc7 {[%clk 0:01:25.9]} 25.
Bc5 {[%clk 0:00:52.4]} 25... a5 {[%clk 0:01:20.8]} 26. Rd6 {[%clk 0:00:43.8]}
26... Kf7 {[%clk 0:01:17]} 27. Rhd1 {[%clk 0:00:43.1]} 27... Bc8 {[%clk
0:00:46.5]} 28. Rd8 {[%clk 0:00:23.3]} 28... Kg6 {[%clk 0:00:45.9]} 29. Re8
{[%clk 0:00:09.4]} 29... Bb7 {[%clk 0:00:41.8]} 30. Rxa8 {[%clk 0:00:09.2]}
30... Bxa8 {[%clk 0:00:41.9]} 31. Rd8 {[%clk 0:00:09.8]} 31... Bb7 {[%clk
0:00:41.9]} 32. Bb6 {[%clk 0:00:09.8]} 32... Rc8 {[%clk 0:00:42]} 33. Rd7 {[%clk
0:00:09.7]} 33... Ba6 {[%clk 0:00:38.3]} 34. Bxa5 {[%clk 0:00:10.3]} 34... c5
{[%clk 0:00:33.6]} 35. c4 {[%clk 0:00:10.2]} 35... Rc6 {[%clk 0:00:31.1]} 36.
Kc2 {[%clk 0:00:09.7]} 36... e5 {[%clk 0:00:31]} 37. Kc3 {[%clk 0:00:09.6]}
37... Bc8 {[%clk 0:00:31]} 38. Rc7 {[%clk 0:00:08.5]} 38... Rxc7 {[%clk
0:00:19.3]} 39. Bxc7 {[%clk 0:00:09.4]} 39... Kf7 {[%clk 0:00:19.4]} 40. Bd6
{[%clk 0:00:09.2]} 40... Ke6 {[%clk 0:00:19.7]} 41. Bxc5 {[%clk 0:00:09.5]}
41... Bb7 {[%clk 0:00:20.6]} 42. g3 {[%clk 0:00:09.4]} 42... f5 {[%clk
0:00:21.1]} 43. Be3 {[%clk 0:00:09.2]} 43... g5 {[%clk 0:00:21.1]} 44. f4 {[%clk
0:00:05.3]} 44... gxf4 {[%clk 0:00:20.6]} 45. gxf4 {[%clk 0:00:05.7]} 45... exf4
{[%clk 0:00:18.4]} 46. Bxf4 {[%clk 0:00:05.9]} 46... h5 {[%clk 0:00:19.2]} 47.
Kd4 {[%clk 0:00:04.8]} 47... Be4 {[%clk 0:00:17.5]} 48. b4 {[%clk 0:00:02.7]}
48... h4 {[%clk 0:00:18]} 49. b5 {[%clk 0:00:02.7]} 49... h3 {[%clk 0:00:18.3]}
50. c5 {[%clk 0:00:02.9]} 50... Kd7 {[%clk 0:00:18.7]} 51. Ke5 {[%clk
0:00:03.2]} 51... Bd3 {[%clk 0:00:18]} 52. c6+ {[%clk 0:00:02.6]} 52... Kc7
{[%clk 0:00:18.2]} 53. Kd5+ {[%clk 0:00:02.6]} 53... Kc8 {[%clk 0:00:18.2]} 54.
Kc5 {[%clk 0:00:02.8]} 54... Be4 {[%clk 0:00:17]} 55. b6 {[%clk 0:00:03.2]} 1-0

[Event "*** Titled Tuesday Blitz"]
[Site "Chess.com"]
[Date "2021.02.02"]
[Round "6"]
[White "Sibelephant"]
[Black "Paralinch"]
[Result "1/2-1/2"]
[WhiteElo "3057"]
[BlackElo "2907"]
[TimeControl "180+1"]
[EndTime "11:09:33 PST"]
[Termination "Game drawn by repetition"]

1. Nf3 {[%clk 0:03:00.2]} 1... d5 {[%clk 0:02:59.1]} 2. b3 {[%clk 0:03:00.5]}
2... Bf5 {[%clk 0:02:55]} 3. Bb2 {[%clk 0:02:59.7]} 3... e6 {[%clk 0:02:55.2]}
4. e3 {[%clk 0:02:57.1]} 4... h6 {[%clk 0:02:54.4]} 5. c4 {[%clk 0:02:49.5]}
5... Nf6 {[%clk 0:02:54.3]} 6. Nc3 {[%clk 0:02:49.6]} 6... Nbd7 {[%clk
0:02:47.8]} 7. Be2 {[%clk 0:02:34.8]} 7... c6 {[%clk 0:02:44.3]} 8. O-O {[%clk
0:02:34.7]} 8... Bd6 {[%clk 0:02:44]} 9. a3 {[%clk 0:02:13.7]} 9... O-O {[%clk
0:02:43.3]} 10. b4 {[%clk 0:02:11.7]} 10... a6 {[%clk 0:02:42.7]} 11. Rc1 {[%clk
0:02:09.5]} 11... e5 {[%clk 0:02:38.9]} 12. cxd5 {[%clk 0:02:06.4]} 12... cxd5
{[%clk 0:02:38.8]} 13. d3 {[%clk 0:01:55.2]} 13... Re8 {[%clk 0:02:35]} 14. Re1
{[%clk 0:01:43.9]} 14... Rc8 {[%clk 0:02:30.9]} 15. h3 {[%clk 0:01:28.2]} 15...
Qe7 {[%clk 0:02:27]} 16. Bf1 {[%clk 0:01:23.3]} 16... Be6 {[%clk 0:02:07.3]} 17.
Ne2 {[%clk 0:01:18.2]} 17... Rxc1 {[%clk 0:01:57.2]} 18. Qxc1 {[%clk 0:01:18.4]}
18... Qf8 {[%clk 0:01:57.9]} 19. Ng3 {[%clk 0:01:14.3]} 19... e4 {[%clk
0:01:47.3]} 20. dxe4 {[%clk 0:01:02]} 20... Bxg3 {[%clk 0:01:46.8]} 21. fxg3
{[%clk 0:01:02.3]} 21... dxe4 {[%clk 0:01:36.5]} 22. Nd4 {[%clk 0:01:01.8]}
22... Qd6 {[%clk 0:01:30.1]} 23. Ne2 {[%clk 0:00:38.6]} 23... Ne5 {[%clk
0:01:17.4]} 24. Bxe5 {[%clk 0:00:38.6]} 24... Qxe5 {[%clk 0:01:17.5]} 25. Qd2
{[%clk 0:00:34.3]} 25... Bc4 {[%clk 0:01:13.8]} 26. Nf4 {[%clk 0:00:31.1]} 26...
Bxf1 {[%clk 0:01:13.6]} 27. Rxf1 {[%clk 0:00:31.5]} 27... Rc8 {[%clk 0:01:12.8]}
28. Kh2 {[%clk 0:00:29.5]} 28... h5 {[%clk 0:01:11.9]} 29. Qf2 {[%clk
0:00:25.8]} 29... Rc3 {[%clk 0:01:10.3]} 30. Rd1 {[%clk 0:00:18.8]} 30... Rxa3
{[%clk 0:01:07.2]} 31. Rd8+ {[%clk 0:00:17.9]} 31... Kh7 {[%clk 0:01:07.4]} 32.
Qd2 {[%clk 0:00:17.5]} 32... Rb3 {[%clk 0:00:48.3]} 33. Rf8 {[%clk 0:00:17]}
33... Qe7 {[%clk 0:00:48.3]} 34. Rc8 {[%clk 0:00:14.4]} 34... Rxb4 {[%clk
0:00:44.9]} 35. Nd5 {[%clk 0:00:12]} 35... Nxd5 {[%clk 0:00:44.6]} 36. Qxd5
{[%clk 0:00:12.6]} 36... Rb5 {[%clk 0:00:45.2]} 37. Qd4 {[%clk 0:00:11.5]} 37...
h4 {[%clk 0:00:41.8]} 38. gxh4 {[%clk 0:00:10.3]} 38... Qxh4 {[%clk 0:00:36.4]}
39. Re8 {[%clk 0:00:10.2]} 39... Rg5 {[%clk 0:00:29.3]} 40. Qd2 {[%clk
0:00:08.8]} 40... Qg3+ {[%clk 0:00:29]} 41. Kh1 {[%clk 0:00:09.1]} 41... Rf5
{[%clk 0:00:27.4]} 42. Qe2 {[%clk 0:00:05.9]} 42... g6 {[%clk 0:00:26.4]} 43.
Kg1 {[%clk 0:00:06.2]} 43... Ra5 {[%clk 0:00:20.5]} 44. Qb2 {[%clk 0:00:04.6]}
44... Qxe3+ {[%clk 0:00:20]} 45. Kh1 {[%clk 0:00:04.9]} 45... f6 {[%clk
0:00:08.8]} 46. Qxf6 {[%clk 0:00:04.5]} 46... Qc1+ {[%clk 0:00:08.7]} 47. Kh2
{[%clk 0:00:04.6]} 47... Qc7+ {[%clk 0:00:08.9]} 48. Kh1 {[%clk 0:00:04.4]}
48... Qc1+ {[%clk 0:00:09.2]} 49. Kh2 {[%clk 0:00:04.4]} 49... Qc7+ {[%clk
0:00:09.4]} 50. Kh1 {[%clk 0:00:04.2]} 50... Qc1+ {[%clk 0:00:09.6]} 1/2-1/2